fUSD/lending_fUSD_20250421
["ID","MTS","AMOUNT","RATE_DAILY","PERIOD"]
[358484255,1745203845427,-548.37548356,0.00065753,120]
[358484256,1745203845437,-500.0,0.00065753,120]
[358484257,1745203845446,-500.0,0.00065753,120]
[358484258,1745203845455,-500.0,0.00065753,120]
[358484259,1745203845465,-500.0,0.00065753,120]
[358484260,1745203845474,-531.79381831,0.00065753,120]
[358484261,1745203845484,-500.0,0.00065753,120]
[358484262,1745203845492,-515.84847871,0.00065753,120]
[358484263,1745203845501,-500.0,0.00065753,120]
[358484264,1745203845510,-125.03317916,0.00065753,120]
[358484265,1745203845685,-500.0,0.00064109,120]
[358484266,1745203845695,-430.26478228,0.00065753,120]
[358484267,1745203845705,-186.26418923,0.00065753,120]
[358484270,1745203845841,-181.51533872,0.00064657,120]
[358484271,1745203845851,-500.0,0.00064657,120]
[358484272,1745203845860,-500.0,0.00065205,120]
[358484273,1745203845869,-589.14581077,0.00065753,120]
[358484274,1745203845878,-500.0,0.00065753,120]
[358484275,1745203845887,-500.0,0.00065753,120]
[358484276,1745203845896,-500.0,0.00065753,120]
[358484277,1745203845905,-420.64711076,0.00065753,120]
[358484278,1745203845924,-18.45855725,0.00065753,120]
[358484279,1745203845933,-500.0,0.00065753,120]
[358484280,1745203845943,-536.1002875,0.00065753,120]
[358484281,1745203845952,-66.68461307,0.00065753,120]
[358484282,1745203845971,-477.4020912,0.00065753,120]
[358484283,1745203845980,-201.24194499,0.00065753,120]
[358484286,1745203846866,-5931.65087308,0.00051022,15]
[358484287,1745203846875,-298.75805501,0.00065753,120]
[358484288,1745203846884,-500.0,0.00065753,120]
[358484289,1745203846893,-500.0,0.00065753,120]
[358484290,1745203846902,-500.0,0.00065753,120]
[358484291,1745203846911,-500.0,0.00065753,120]
[358484292,1745203846921,-500.0,0.00065753,120]
[358484293,1745203846930,-500.0,0.00065753,120]
[358484294,1745203846940,-1500.0,0.00065753,120]
[358484295,1745203846949,-500.0,0.00065753,120]
[358484296,1745203846960,-500.0,0.00065753,120]
[358484297,1745203846970,-516.14486189,0.00065753,120]
[358484298,1745203846979,-544.21315248,0.00065753,120]
[358484299,1745203846991,-500.0,0.00065753,120]
[358484300,1745203847002,-500.0,0.00065753,120]
[358484301,1745203847012,-500.0,0.00065753,120]
[358484302,1745203847022,-500.0,0.00065753,120]
[358484303,1745203847031,-500.0,0.00065753,120]
[358484304,1745203847041,-999.0,0.00065753,120]
[358484305,1745203847050,-500.0,0.00065753,120]
[358484306,1745203847059,-543.22259878,0.00065753,120]
[358484307,1745203847069,-500.0,0.00065753,120]
[358484308,1745203847080,-500.0,0.00065753,120]
[358484309,1745203847089,-528.822614,0.00065753,120]
[358484310,1745203847099,-500.0,0.00065753,120]
[358484311,1745203847108,-567.84039911,0.00065753,120]
[358484312,1745203847117,-500.0,0.00065753,120]
[358484313,1745203847126,-500.0,0.00065753,120]
[358484314,1745203847135,-500.0,0.00065753,120]
[358484315,1745203847145,-500.0,0.00065753,120]
[358484316,1745203847155,-500.0,0.00065753,120]
[358484317,1745203847165,-500.0,0.00065753,120]
[358484318,1745203847175,-500.0,0.00065753,120]
[358484319,1745203847184,-500.0,0.00065753,120]
[358484320,1745203847193,-502.3897624,0.00065753,120]
[358484321,1745203847202,-500.0,0.00065753,120]
[358484322,1745203847213,-500.0,0.00065753,120]
[358484323,1745203847223,-500.0,0.00065753,120]
[358484324,1745203847232,-500.0,0.00065753,120]
[358484325,1745203847241,-500.0,0.00065753,120]
[358484326,1745203847250,-500.0,0.00065753,120]
[358484327,1745203847258,-500.0,0.00065753,120]
[358484328,1745203847267,-500.0,0.00065753,120]
[358484329,1745203847276,-500.0,0.00065753,120]
[358484330,1745203847285,-500.0,0.00065753,120]
[358484331,1745203847294,-516.33079572,0.00065753,120]
[358484332,1745203847304,-500.0,0.00065753,120]
[358484333,1745203847313,-508.17724565,0.00065753,30]
[358484334,1745203847322,-509.49946541,0.00065753,120]
[358484335,1745203847331,-500.0,0.00065753,120]
[358484336,1745203847339,-500.0,0.00065753,120]
[358484337,1745203847349,-500.0,0.00065753,120]
[358484338,1745203847357,-500.0,0.00065753,120]
[358484339,1745203847366,-500.0,0.00065753,120]
[358484340,1745203847375,-500.0,0.00065753,120]
[358484341,1745203847384,-500.0,0.00065753,120]
[358484342,1745203847393,-500.0,0.00065753,120]
[358484343,1745203847402,-500.0,0.00065753,120]
[358484344,1745203847411,-507.21837456,0.00065753,120]
[358484345,1745203847420,-500.0,0.00065753,120]
[358484346,1745203847429,-500.0,0.00065753,120]
[358484347,1745203847438,-844.65,0.00065753,120]
[358484348,1745203847447,-500.0,0.00065753,120]
[358484349,1745203847457,-588.5342434,0.00065753,120]
[358484350,1745203847466,-500.0,0.00065753,120]
[358484351,1745203847475,-500.0,0.00065753,120]
[358484352,1745203847485,-500.0,0.00065753,120]
[358484353,1745203847494,-500.0,0.00065753,120]
[358484354,1745203847502,-500.0,0.00065753,120]
[358484355,1745203847511,-500.0,0.00065753,120]
[358484356,1745203847520,-500.0,0.00065753,120]
[358484357,1745203847529,-500.0,0.00065753,120]
[358484358,1745203847539,-500.0,0.00065753,120]
[358484359,1745203847547,-525.31475404,0.00065753,120]
[358484360,1745203847557,-500.0,0.00065753,120]
[358484361,1745203847565,-500.0,0.00065753,120]
[358484362,1745203847574,-530.48317193,0.00065753,120]
[358484363,1745203847583,-500.0,0.00065753,120]
[358484364,1745203847593,-500.0,0.00065753,120]
[358484365,1745203847602,-500.0,0.00065753,120]
[358484366,1745203847612,-500.0,0.00065753,120]
[358484367,1745203847621,-500.0,0.00065753,120]
[358484368,1745203847630,-540.16280134,0.00065753,120]
[358484369,1745203847639,-500.0,0.00065753,120]
[358484370,1745203847647,-500.0,0.00065753,120]
[358484371,1745203847656,-566.30084486,0.00065753,120]
[358484372,1745203847666,-500.0,0.00065753,120]
[358484373,1745203847675,-500.0,0.00065753,120]
[358484374,1745203847685,-508.62177945,0.00065753,120]
[358484375,1745203847695,-511.82518281,0.00065753,120]
[358484376,1745203847704,-500.0,0.00065753,120]
[358484377,1745203847714,-870.76,0.00065753,120]
[358484378,1745203847724,-602.57910325,0.00065753,120]
[358484379,1745203847735,-514.73421349,0.00065753,120]
[358484380,1745203847746,-555.47710427,0.00065753,120]
[358484381,1745203847756,-500.0,0.00065753,120]
[358484382,1745203847766,-500.0,0.00065753,120]
[358484383,1745203847775,-500.0,0.00065753,120]
[358484384,1745203847786,-1506.1,0.00065753,120]
[358484385,1745203847796,-500.0,0.00065753,120]
[358484386,1745203847807,-521.14352456,0.00065753,120]
[358484387,1745203847816,-500.0,0.00065753,120]
[358484388,1745203847826,-547.99640149,0.00065753,120]
[358484389,1745203847836,-643.64329807,0.00065753,120]
[358484390,1745203847845,-500.0,0.00065753,120]
[358484391,1745203847855,-500.0,0.00065753,120]
[358484392,1745203847864,-500.0,0.00065753,120]
[358484393,1745203847874,-338.57329336,0.00065753,120]
[358484394,1745203847883,-500.0,0.00065753,120]
[358484395,1745203847894,-500.0,0.00065753,120]
[358484396,1745203847903,-500.0,0.00065753,120]
[358484397,1745203847914,-503.09377479,0.00065753,120]
[358484398,1745203847923,-500.0,0.00065753,120]
[358484399,1745203847932,-547.93366165,0.00065753,120]
[358484400,1745203847942,-500.0,0.00065753,120]
[358484401,1745203847952,-88.05824107,0.00065753,120]
[358484402,1745203848121,-151.0,0.00044511,7]
[358484403,1745203848130,-151.0,0.00044511,7]
[358484404,1745203848139,-2342.0853976,0.00063014,120]
[358484405,1745203848149,-2342.0853976,0.00063014,120]
[358484406,1745203848159,-1064.63434795,0.00063014,120]
[358484407,1745203848171,-1277.45104965,0.00063014,120]
[358484408,1745203848180,-2342.0853976,0.00063014,120]
[358484409,1745203848189,-2222.99013123,0.00063014,120]
[358484410,1745203848297,-119.09526637,0.00063014,120]
[358484411,1745203848307,-472.60295533,0.00063014,120]
[358484412,1745203848320,-1869.48244227,0.00063014,120]
[358484413,1745203848330,-2342.0853976,0.00063014,120]
[358484414,1745203848339,-1277.93797353,0.00063014,120]
[358484415,1745203848457,-1064.14742407,0.00063014,120]
[358484416,1745203848466,-2342.0853976,0.00063014,120]
[358484417,1745203848475,-2082.01967503,0.00063014,120]
[358484418,1745203848489,-260.06572257,0.00063014,120]
[358484419,1745203848499,-2342.0853976,0.00063014,120]
[358484420,1745203848508,-2342.0853976,0.00063014,120]
[358484421,1745203848517,-30.76348223,0.00063014,120]
[358484422,1745203848541,-2311.32191537,0.00063014,120]
[358484423,1745203848550,-2342.0853976,0.00063014,120]
[358484424,1745203848560,-2342.0853976,0.00063014,120]
[358484425,1745203848569,-2342.0853976,0.00063014,120]
[358484426,1745203848579,-2342.0853976,0.00063014,120]
[358484427,1745203848588,-2342.0853976,0.00063014,120]
[358484428,1745203848597,-2342.0853976,0.00063014,120]
[358484429,1745203848607,-2342.0853976,0.00063014,120]
[358484430,1745203848616,-2342.0853976,0.00063014,120]
[358484431,1745203848625,-2342.0853976,0.00063014,120]
[358484432,1745203848634,-2342.0853976,0.00063014,120]
[358484433,1745203848643,-2342.0853976,0.00063014,120]
[358484434,1745203848653,-2342.0853976,0.00063014,120]
[358484435,1745203848662,-411.94175893,0.00065753,120]
[358484436,1745203848672,-811.79,0.00065753,120]
[358484437,1745203848681,-500.0,0.00065753,120]
[358484438,1745203848690,-500.0,0.00065753,120]
[358484439,1745203848699,-500.0,0.00065753,120]
[358484440,1745203848708,-500.0,0.00065753,120]
[358484441,1745203848718,-500.0,0.00065753,120]
[358484442,1745203848727,-839.4,0.00065753,120]
[358484443,1745203848736,-599.30762953,0.00065753,120]
[358484444,1745203848745,-500.0,0.00065753,120]
[358484445,1745203848754,-500.0,0.00065753,120]
[358484446,1745203848763,-500.0,0.00065753,120]
[358484447,1745203848772,-500.0,0.00065753,120]
[358484448,1745203848782,-500.0,0.00065753,120]
[358484449,1745203848790,-500.0,0.00065753,120]
[358484450,1745203848799,-500.0,0.00065753,120]
[358484451,1745203848809,-500.0,0.00065753,120]
[358484452,1745203848818,-1258.3,0.00065753,120]
[358484453,1745203848828,-500.0,0.00065753,30]
[358484454,1745203848837,-207.4738563,0.00065753,120]
[358484455,1745203848846,-500.0,0.00065753,120]
[358484456,1745203848855,-500.0,0.00065753,120]
[358484457,1745203848864,-500.0,0.00065753,120]
[358484458,1745203848873,-500.0,0.00065753,120]
[358484459,1745203848882,-592.30888723,0.00065753,120]
[358484460,1745203848891,-548.47617671,0.00065753,120]
[358484461,1745203848901,-500.0,0.00065753,7]
[358484462,1745203848910,-500.0,0.00065753,120]
[358484463,1745203848921,-634.02822069,0.00065753,120]
[358484464,1745203848931,-583.01310586,0.00065753,120]
[358484465,1745203848941,-581.64339035,0.00065753,120]
[358484466,1745203848951,-500.0,0.00065753,120]
[358484467,1745203848960,-500.0,0.00065753,120]
[358484468,1745203848971,-500.0,0.00065753,120]
[358484469,1745203848980,-500.0,0.00065753,120]
[358484470,1745203848991,-511.57391709,0.00065753,120]
[358484471,1745203849003,-500.0,0.00065753,120]
[358484472,1745203849012,-547.40607647,0.00065753,120]
[358484473,1745203849022,-500.0,0.00065753,120]
[358484474,1745203849031,-500.0,0.00065753,120]
[358484475,1745203849042,-1301.71,0.00065753,120]
[358484476,1745203849052,-562.70096494,0.00065753,120]
[358484477,1745203849061,-500.0,0.00065753,120]
[358484478,1745203849074,-578.19794425,0.00065753,120]
[358484479,1745203849084,-500.0,0.00065753,120]
[358484480,1745203849094,-500.0,0.00065753,120]
[358484481,1745203849103,-500.0,0.00065753,120]
[358484482,1745203849112,-500.0,0.00065753,120]
[358484483,1745203849122,-500.0,0.00065753,120]
[358484484,1745203849131,-500.0,0.00065753,120]
[358484485,1745203849140,-500.0,0.00065753,120]
[358484486,1745203849150,-500.0,0.00065753,120]
[358484487,1745203849160,-500.0,0.00065753,120]
[358484488,1745203849170,-500.0,0.00065753,120]
[358484489,1745203849179,-500.0,0.00065753,120]
[358484490,1745203849189,-500.0,0.00065753,120]
[358484491,1745203849198,-500.0,0.00065753,120]
[358484492,1745203849208,-500.0,0.00065753,120]
[358484493,1745203849217,-500.0,0.00065753,120]
[358484494,1745203849227,-500.0,0.00065753,120]
[358484495,1745203849237,-500.0,0.00065753,120]
[358484496,1745203849247,-553.19637987,0.00065753,120]
[358484497,1745203849256,-622.51384755,0.00065753,120]
[358484498,1745203849266,-500.0,0.00065753,120]
[358484499,1745203849276,-500.0,0.00065753,120]
[358484500,1745203849286,-500.0,0.00065753,120]
[358484501,1745203849295,-600.0,0.00065753,120]
[358484502,1745203849304,-179.932788,0.00065753,120]
[358484503,1745203849313,-179.932788,0.00065753,120]
[358484504,1745203849322,-179.932788,0.00065753,120]
[358484505,1745203849332,-179.932788,0.00065753,120]
[358484506,1745203849342,-500.0,0.00065753,120]
[358484507,1745203849351,-1089.42,0.00065753,120]
[358484508,1745203849360,-179.932788,0.00065753,120]
[358484509,1745203849370,-500.0,0.00065753,120]
[358484510,1745203849380,-179.932788,0.00065753,120]
[358484511,1745203849389,-179.932788,0.00065753,120]
[358484512,1745203849398,-506.79608338,0.00065753,120]
[358484513,1745203849407,-179.932788,0.00065753,120]
[358484514,1745203849416,-500.0,0.00065753,120]
[358484515,1745203849426,-500.0,0.00065753,120]
[358484516,1745203849435,-500.0,0.00065753,14]
[358484517,1745203849444,-500.0,0.00065753,120]
[358484518,1745203849453,-500.0,0.00065753,120]
[358484519,1745203849463,-875.34,0.00065753,120]
[358484520,1745203849472,-572.67795612,0.00065753,120]
[358484521,1745203849482,-500.0,0.00065753,120]
[358484522,1745203849491,-543.83766019,0.00065753,120]
[358484523,1745203849500,-535.52573727,0.00065753,120]
[358484524,1745203849509,-500.0,0.00065753,120]
[358484525,1745203849518,-500.0,0.00065753,120]
[358484526,1745203849527,-500.0,0.00065753,120]
[358484527,1745203849536,-500.0,0.00065753,120]
[358484528,1745203849546,-500.0,0.00065753,120]
[358484529,1745203849554,-500.0,0.00065753,120]
[358484530,1745203849563,-499.70471061,0.00065753,120]
[358484531,1745203849573,-500.0,0.00065753,120]
[358484532,1745203849582,-506.16544784,0.00065753,120]
[358484533,1745203849591,-1024.9,0.00065753,120]
[358484534,1745203849601,-500.0,0.00065753,120]
[358484535,1745203849610,-500.0,0.00065753,120]
[358484536,1745203849620,-565.17794584,0.00065753,120]
[358484537,1745203849629,-500.0,0.00065753,120]
[358484538,1745203849638,-533.35188655,0.00065753,120]
[358484539,1745203849647,-500.0,0.00065753,120]
[358484540,1745203849656,-500.0,0.00065753,120]
[358484541,1745203849665,-547.33830471,0.00065753,120]
[358484542,1745203849674,-500.0,0.00065753,120]
[358484543,1745203849684,-500.0,0.00065753,120]
[358484544,1745203849693,-500.0,0.00065753,120]
[358484545,1745203849702,-570.26543755,0.00065753,120]
[358484546,1745203849711,-500.0,0.00065753,120]
[358484547,1745203849720,-617.10114959,0.00065753,120]
[358484548,1745203849729,-565.06849207,0.00065753,120]
[358484549,1745203849738,-500.0,0.00065753,120]
[358484550,1745203849747,-500.0,0.00065753,120]
[358484551,1745203849756,-500.0,0.00065753,120]
[358484552,1745203849765,-199.972774,0.00065753,120]
[358484553,1745203849774,-500.0,0.00065753,120]
[358484554,1745203849783,-549.77332377,0.00065753,120]
[358484555,1745203849792,-500.0,0.00065753,120]
[358484556,1745203849801,-500.0,0.00065753,120]
[358484557,1745203849810,-462.89502859,0.00065753,120]
[358484558,1745203849819,-500.0,0.00065753,120]
[358484559,1745203849828,-500.0,0.00065753,120]
[358484560,1745203849837,-532.12191033,0.00065753,120]
[358484561,1745203849846,-500.0,0.00065753,120]
[358484562,1745203849855,-500.0,0.00065753,120]
[358484563,1745203849864,-500.0,0.00065753,120]
[358484564,1745203849873,-500.0,0.00065753,120]
[358484565,1745203849882,-500.0,0.00065753,120]
[358484566,1745203849891,-500.0,0.00065753,120]
[358484567,1745203849900,-500.0,0.00065753,120]
[358484568,1745203849909,-500.0,0.00065753,120]
[358484569,1745203849918,-500.0,0.00065753,120]
[358484570,1745203849927,-500.0,0.00065753,120]
[358484571,1745203849936,-500.0,0.00065753,120]
[358484572,1745203849945,-500.0,0.00065753,120]
[358484573,1745203849954,-647.71881588,0.00065753,120]
[358484574,1745203849964,-500.0,0.00065753,120]
[358484575,1745203849973,-500.0,0.00065753,120]
[358484576,1745203849982,-500.0,0.00065753,120]
[358484577,1745203849995,-518.28566135,0.00065753,120]
[358484578,1745203850004,-500.0,0.00065753,120]
[358484579,1745203850013,-526.63763772,0.00065753,120]
[358484580,1745203850022,-653.96,0.00065753,120]
[358484581,1745203850032,-500.0,0.00065753,120]
[358484582,1745203850042,-500.0,0.00065753,120]
[358484583,1745203850051,-500.0,0.00065753,120]
[358484584,1745203850061,-500.0,0.00065753,120]
[358484585,1745203850072,-500.0,0.00065753,120]
[358484586,1745203850081,-546.33843736,0.00065753,120]
[358484587,1745203850090,-569.71285635,0.00065753,120]
[358484588,1745203850099,-500.0,0.00065753,120]
[358484589,1745203850108,-500.0,0.00065753,120]
[358484590,1745203850118,-552.27786432,0.00065753,120]
[358484591,1745203850127,-500.0,0.00065753,120]
[358484592,1745203850137,-511.20678811,0.00065753,120]
[358484593,1745203850147,-500.0,0.00065753,120]
[358484594,1745203850157,-500.0,0.00065753,120]
[358484595,1745203850168,-523.48756552,0.00065753,120]
[358484596,1745203850178,-500.0,0.00065753,120]
[358484597,1745203850189,-508.96312247,0.00065753,120]
[358484598,1745203850198,-500.0,0.00065753,120]
[358484599,1745203850207,-500.0,0.00065753,120]
[358484600,1745203850216,-547.73221251,0.00065753,120]
[358484601,1745203850225,-500.0,0.00065753,120]
[358484602,1745203850234,-500.0,0.00065753,120]
[358484603,1745203850244,-500.0,0.00065753,120]
[358484604,1745203850253,-500.0,0.00065753,120]
[358484605,1745203850262,-556.26242659,0.00065753,120]
[358484606,1745203850270,-517.92572977,0.00065753,120]
[358484607,1745203850279,-500.0,0.00065753,120]
[358484608,1745203850288,-305.90913094,0.00065753,120]
[358484609,1745203850297,-500.0,0.00065753,120]
[358484610,1745203850306,-518.36305157,0.00065753,120]
[358484611,1745203850315,-534.48365655,0.00065753,120]
[358484612,1745203850323,-500.0,0.00065753,120]
[358484613,1745203850332,-532.45955156,0.00065753,120]
[358484614,1745203850341,-535.7415756,0.00065753,120]
[358484615,1745203850350,-500.0,0.00065753,120]
[358484616,1745203850359,-516.90812867,0.00065753,120]
[358484617,1745203850367,-500.0,0.00065753,120]
[358484618,1745203850376,-500.0,0.00065753,120]
[358484619,1745203850385,-500.0,0.00065753,120]
[358484620,1745203850394,-496.24960959,0.00065753,120]
[358484621,1745203850403,-300.0,0.00065753,120]
[358484622,1745203850413,-500.0,0.00065753,120]
[358484623,1745203850423,-500.0,0.00065753,120]
[358484624,1745203850433,-500.0,0.00065753,120]
[358484625,1745203850443,-500.0,0.00065753,120]
[358484626,1745203850452,-500.0,0.00065753,120]
[358484627,1745203850462,-500.0,0.00065753,120]
[358484628,1745203850472,-500.0,0.00065753,120]
[358484629,1745203850481,-300.0,0.00065753,120]
[358484630,1745203850491,-500.0,0.00065753,120]
[358484631,1745203850500,-514.77112715,0.00065753,120]
[358484632,1745203850509,-500.0,0.00065753,120]
[358484633,1745203850518,-500.0,0.00065753,120]
[358484634,1745203850528,-500.0,0.00065753,120]
[358484635,1745203850537,-500.0,0.00065753,120]
[358484636,1745203850547,-500.0,0.00065753,120]
[358484637,1745203850557,-509.8668666,0.00065753,120]
[358484638,1745203850566,-500.0,0.00065753,120]
[358484639,1745203850575,-500.0,0.00065753,120]
[358484640,1745203850680,-500.0,0.00065753,120]
[358484641,1745203850689,-500.0,0.00065753,120]
[358484642,1745203850698,-500.0,0.00065753,120]
[358484643,1745203850707,-500.0,0.00065753,120]
[358484644,1745203850716,-500.0,0.00065753,120]
[358484645,1745203850725,-500.0,0.00065753,120]
[358484646,1745203850734,-500.0,0.00065753,120]
[358484647,1745203850744,-563.13910408,0.00065753,120]
[358484648,1745203850752,-500.0,0.00065753,120]
[358484649,1745203850761,-500.0,0.00065753,120]
[358484650,1745203850770,-516.76839149,0.00065753,120]
[358484651,1745203850779,-500.0,0.00065753,120]
[358484652,1745203850788,-557.62623526,0.00065753,120]
[358484653,1745203850797,-500.0,0.00065753,120]
[358484654,1745203850805,-559.87718595,0.00065753,120]
[358484655,1745203850814,-551.70670431,0.00065753,120]
[358484656,1745203850823,-500.0,0.00065753,120]
[358484657,1745203850832,-539.55514672,0.00065753,120]
[358484658,1745203850841,-301.28604599,0.00065753,120]
[358484659,1745203850850,-542.32937735,0.00065753,120]
[358484660,1745203850859,-541.93377313,0.00065753,120]
[358484661,1745203850868,-557.80510082,0.00065753,120]
[358484662,1745203850877,-554.2248633,0.00065753,120]
[358484663,1745203850886,-160.06262027,0.00065753,120]
[358484664,1745203850895,-579.64926581,0.00065753,120]
[358484665,1745203850904,-500.0,0.00065753,120]
[358484666,1745203850913,-500.0,0.00065753,120]
[358484667,1745203850922,-500.0,0.00065753,120]
[358484668,1745203850931,-500.0,0.00065753,120]
[358484669,1745203850940,-500.0,0.00065753,120]
[358484670,1745203850950,-500.59295591,0.00065753,120]
[358484671,1745203850959,-562.4065322,0.00065753,120]
[358484672,1745203850968,-548.58197435,0.00065753,120]
[358484673,1745203850977,-500.0,0.00065753,120]
[358484674,1745203850986,-500.0,0.00065753,120]
[358484675,1745203851001,-500.0,0.00065753,120]
[358484676,1745203851010,-500.0,0.00065753,120]
[358484677,1745203851019,-510.06422305,0.00065753,120]
[358484678,1745203851031,-500.0,0.00065753,10]
[358484679,1745203851040,-500.0,0.00065753,120]
[358484680,1745203851049,-561.00190513,0.00065753,120]
[358484681,1745203851058,-552.19,0.00065753,120]
[358484682,1745203851068,-500.0,0.00065753,120]
[358484683,1745203851078,-500.0,0.00065753,120]
[358484684,1745203851087,-500.0,0.00065753,120]
[358484685,1745203851096,-500.0,0.00065753,120]
[358484686,1745203851105,-564.81678185,0.00065753,120]
[358484687,1745203851115,-502.81534713,0.00065753,120]
[358484688,1745203851124,-500.0,0.00065753,120]
[358484689,1745203851134,-527.46059411,0.00065753,120]
[358484690,1745203851143,-500.0,0.00065753,120]
[358484691,1745203851152,-500.0,0.00065753,120]
[358484692,1745203851162,-548.18485996,0.00065753,120]
[358484693,1745203851171,-500.0,0.00065753,120]
[358484694,1745203851180,-500.0,0.00065753,120]
[358484695,1745203851190,-586.23000103,0.00065753,120]
[358484696,1745203851199,-500.0,0.00065753,120]
[358484697,1745203851208,-455.15820229,0.00065753,120]
[358484698,1745203851218,-486.42926989,0.00065753,120]
[358484699,1745203851227,-500.0,0.00065753,120]
[358484700,1745203851236,-500.0,0.00065753,120]
[358484701,1745203851245,-527.85542286,0.00065753,120]
[358484702,1745203851254,-282.83565511,0.00065753,120]
[358484703,1745203851263,-562.24468677,0.00065753,120]
[358484704,1745203851272,-557.24451869,0.00065753,120]
[358484705,1745203851281,-551.23709452,0.00065753,120]
[358484706,1745203851290,-500.0,0.00065753,120]
[358484707,1745203851299,-500.0,0.00065753,20]
[358484708,1745203851307,-500.0,0.00065753,120]
[358484709,1745203851316,-500.0,0.00065753,120]
[358484710,1745203851325,-559.89595794,0.00065753,120]
[358484711,1745203851334,-500.0,0.00065753,120]
[358484712,1745203851343,-524.32655162,0.00065753,120]
[358484713,1745203851352,-500.0,0.00065753,120]
[358484714,1745203851368,-500.0,0.00065753,120]
[358484715,1745203851377,-500.0,0.00065753,120]
[358484716,1745203851386,-505.55097611,0.00065753,120]
[358484717,1745203851395,-537.90032922,0.00065753,120]
[358484718,1745203851404,-520.26197918,0.00065753,120]
[358484719,1745203851413,-500.0,0.00065753,120]
[358484720,1745203851423,-523.90637538,0.00065753,120]
[358484721,1745203851434,-500.0,0.00065753,120]
[358484722,1745203851443,-500.0,0.00065753,120]
[358484723,1745203851452,-500.0,0.00065753,120]
[358484724,1745203851462,-500.0,0.00065753,120]
[358484725,1745203851471,-504.59205877,0.00065753,120]
[358484726,1745203851480,-500.0,0.00065753,120]
[358484727,1745203851489,-500.0,0.00065753,120]
[358484728,1745203851498,-508.06284586,0.00065753,120]
[358484729,1745203851507,-572.53475047,0.00065753,120]
[358484730,1745203851516,-500.0,0.00065753,120]
[358484731,1745203851526,-500.0,0.00065753,120]
[358484732,1745203851535,-582.21432565,0.00065753,120]
[358484733,1745203851544,-500.0,0.00065753,120]
[358484734,1745203851554,-500.0,0.00065753,120]
[358484735,1745203851565,-500.0,0.00065753,120]
[358484736,1745203851575,-164.811833,0.00065753,120]
[358484737,1745203851585,-500.0,0.00065753,120]
[358484738,1745203851595,-164.811833,0.00065753,120]
[358484739,1745203851604,-164.811833,0.00065753,120]
[358484740,1745203851614,-164.811833,0.00065753,120]
[358484741,1745203851624,-500.0,0.00065753,120]
[358484742,1745203851634,-500.0,0.00065753,120]
[358484743,1745203851645,-500.0,0.00065753,120]
[358484744,1745203851654,-500.0,0.00065753,120]
[358484745,1745203851665,-164.811833,0.00065753,120]
[358484746,1745203851675,-500.0,0.00065753,120]
[358484747,1745203851686,-164.811833,0.00065753,120]
[358484748,1745203851695,-164.811833,0.00065753,120]
[358484749,1745203851705,-2297.22,0.00065753,120]
[358484750,1745203851714,-164.811833,0.00065753,120]
[358484751,1745203851725,-500.0,0.00065753,120]
[358484752,1745203851735,-500.0,0.00065753,120]
[358484753,1745203851747,-500.0,0.00065753,120]
[358484754,1745203851756,-612.49510235,0.00065753,120]
[358484755,1745203851766,-544.43388599,0.00065753,120]
[358484756,1745203851775,-500.0,0.00065753,120]
[358484757,1745203851785,-502.64269616,0.00065753,120]
[358484758,1745203851795,-500.0,0.00065753,120]